[Event "Centenario Panaderia Pulido 2023"]
[Site "San Mateo Gran Canaria"]
[Date "2023.12.05"]
[Round "2.7"]
[White "Calzetta Ruiz, Monica"]
[Black "Guerrero Orihuela, Jose Luis"]
[Result "1-0"]
[ECO "B15"]
[WhiteElo "2239"]
[BlackElo "1901"]
[Annotator "RC"]
[PlyCount "97"]
[EventDate "2023.12.04"]
[EventType "swiss"]
[EventCountry "ESP"]
[SourceTitle "playchess.com"]
[Source "ChessBase"]
[SourceQuality "1"]
[TimeControl "5400+30"]

1. e4 {[%emt 0:00:03]} c6 {[%emt 0:00:17]} 2. d4 {[%emt 0:00:07]} d5 {[%emt 0:00:08]} 3. Nd2 {[%emt 0:02:00]} dxe4 {[%emt 0:00:07]} 4. Nxe4 {[%emt 0:00:06]} Nf6 {[%emt 0:00:17]} 5. Nxf6+ {[%emt 0:00:46]} exf6 {[%emt 0:00:08]} 6. c3 {[%emt 0:00:28]} Bd6 {[%emt 0:02:35]} 7. Bd3 {[%emt 0:01:07]} O-O {[%emt 0:01:51]} 8. Qc2 {[%emt 0:02:26]} Re8+ {[%emt 0:02:53]} 9. Ne2 {[%emt 0:02:54]} h5 {[%emt 0:07:21]} 10. Be3 {[%emt 0:04:36]} Be6 {[%emt 0:03:05]} 11. O-O {[%emt 0:04:20]} Qc7 {[%emt 0:01:59]} 12. h3 {[%emt 0:04:12]} Nd7 {[%emt 0:02:50]} 13. c4 {[%emt 0:05:05]} Qb8 {[%emt 0:11:55]} 14. Rfd1 {[%emt 0:04:08]} Nf8 {[%emt 0:10:08]} 15. Rac1 {[%emt 0:04:24]} Qc8 {[%emt 0:13:33]} 16. Bf4 {[%emt 0:06:50]} Rd8 {[%emt 0:03:48]} 17. Be4 {[%emt 0:07:59]} Qc7 {[%emt 0:04:39]} 18. Bxd6 {[%emt 0:11:08]} Rxd6 {[%emt 0:00:17]} 19. Nf4 {[%emt 0:10:25]} Rad8 {[%emt 0:04:19]} 20. Qc3 {[%emt 0:15:59]} Qd7 {[%emt 0:06:40]} 21. d5 {[%emt 0:02:46]} cxd5 {[%emt 0:03:33]} 22. c5 {[%emt 0:00:42]} d4 {[%emt 0:00:42]} 23. Qg3 {[%emt 0:00:13]} Ra6 {[%emt 0:01:39]} 24. Nxh5 {[%emt 0:00:07]} Ng6 {[%emt 0:00:17]} 25. a3 {[%emt 0:04:37]} Bf5 {[%emt 0:05:15]} 26. Bxf5 {[%emt 0:01:28]} Qxf5 {[%emt 0:00:05]} 27. Qc7 {[%emt 0:00:06]} Qd7 {[%emt 0:00:23]} 28. Qxd7 {[%emt 0:00:53]} Rxd7 {[%emt 0:00:04]} 29. Rc4 {[%emt 0:00:19]} Rc6 {[%emt 0:03:28]} 30. b4 {[%emt 0:00:15]} b6 {[%emt 0:01:41]} 31. Rcxd4 {[%emt 0:00:58]} Rxd4 {[%emt 0:00:07]} 32. Rxd4 {[%emt 0:00:04]} bxc5 {[%emt 0:00:02]} 33. Rc4 {[%emt 0:01:01]} Ra6 {[%emt 0:00:10]} 34. bxc5 {[%emt 0:00:04]} Rxa3 {[%emt 0:00:22]} 35. c6 {[%emt 0:00:04]} Ne7 {[%emt 0:00:43]} 36. c7 {[%emt 0:00:02]} Nc8 {[%emt 0:03:01]} 37. Rd4 {[%emt 0:00:08]} Kh7 {[%emt 0:01:28]} 38. Rd8 {[%emt 0:00:21]} Nb6 {[%emt 0:00:24]} 39. c8=Q {[%emt 0:00:20]} Nxc8 {[%emt 0:00:02]} 40. Rxc8 {[%emt 0:00:10]} Ra1+ {[%emt 0:00:21]} 41. Kh2 {[%emt 0:00:02]} Kg6 {[%emt 0:01:13]} 42. Nf4+ {[%emt 0:00:06]} Kf5 {[%emt 0:00:03]} 43. g3 {[%emt 0:01:18]} g5 {[%emt 0:00:34]} 44. Nd5 {[%emt 0:01:50]} Ke5 {[%emt 0:00:25]} 45. Ne3 {[%emt 0:00:15]} a5 {[%emt 0:00:37]} 46. h4 {[%emt 0:02:34]} gxh4 {[%emt 0:00:39]} 47. gxh4 {[%emt 0:00:02]} Ra4 {[%emt 0:00:06]} 48. Kg3 {[%emt 0:00:23]} f5 {[%emt 0:00:08]} 49. Rc5+ {[%emt 0:04:49]} 1-0

[Event "Centenario Panaderia Pulido 2023"]
[Site "San Mateo Gran Canaria"]
[Date "2023.12.05"]
[Round "2.8"]
[White "Ramos Santana, Marcelino"]
[Black "Oudeh Mishmesh, Omar"]
[Result "0-1"]
[ECO "B12"]
[WhiteElo "1830"]
[BlackElo "2247"]
[Annotator "RC"]
[PlyCount "107"]
[EventDate "2023.12.04"]
[EventType "swiss"]
[EventCountry "ESP"]
[SourceTitle "playchess.com"]
[Source "ChessBase"]
[SourceQuality "1"]
[TimeControl "5400+30"]

1. e4 {[%emt 0:00:56]} c6 {[%emt 0:00:16]} 2. d4 {[%emt 1:30:34]} d5 {[%emt 0:00:09]} 3. e5 {[%emt 0:00:00]} Bf5 {[%emt 0:00:36]} 4. Nf3 {[%emt 0:00:00]} e6 {[%emt 0:00:55]} 5. Be2 {[%emt 0:00:00]} Nd7 {[%emt 0:04:39]} 6. O-O {[%emt 0:00:00]} Bg6 {[%emt 0:01:03]} 7. a4 {[%emt 0:00:00]} Nh6 {[%emt 0:04:52]} 8. a5 {[%emt 0:00:00]} a6 {[%emt 0:15:03]} 9. Bf4 {[%emt 0:00:00]} Bb4 {[%emt 0:07:17]} 10. Bd2 {[%emt 0:00:00]} Bxd2 {[%emt 0:00:46]} 11. Qxd2 {[%emt 0:00:00]} O-O {[%emt 0:03:49]} 12. b4 {[%emt 0:00:00]} f6 {[%emt 0:05:07]} 13. exf6 {[%emt 0:00:00]} Qxf6 {[%emt 0:02:48]} 14. c4 {[%emt 0:00:00]} Nf5 {[%emt 0:05:06]} 15. Nc3 {[%emt 0:00:00]} Nd6 {[%emt 0:06:05]} 16. cxd5 {[%emt 0:00:00]} exd5 {[%emt 0:00:30]} 17. Qg5 {[%emt 0:00:00]} Rae8 {[%emt 0:07:47]} 18. Rfe1 {[%emt 0:00:00]} Qf7 {[%emt 0:03:41]} 19. Rf1 {[%emt 0:00:00]} Be4 {[%emt 0:08:25]} 20. Rae1 {[%emt 0:00:00]} h6 {[%emt 0:06:28]} 21. Qd2 {[%emt 0:00:00]} Qf6 {[%emt 0:03:02]} 22. h3 {[%emt 0:00:00]} Kh8 {[%emt 0:02:44]} 23. Kh1 {[%emt 0:00:00]} Nf5 {[%emt 0:00:38]} 24. Rd1 {[%emt 0:00:00]} Qg6 {[%emt 0:02:13]} 25. Rg1 {[%emt 0:00:00]} Nd6 {[%emt 0:02:23]} 26. Rde1 {[%emt 0:02:06]} Qh5 {[%emt 0:01:00]} 27. Kh2 {[%emt 0:02:16]} Qf7 {[%emt 0:01:36]} 28. Rgf1 {[%emt 0:00:48]} Qf6 {[%emt 0:01:03]} 29. Kh1 {[%emt 0:00:45]} Re7 {[%emt 0:02:04]} 30. Nh2 {[%emt 0:02:34]} Qh4 {[%emt 0:00:34]} 31. Bg4 {[%emt 0:01:53]} Ref7 {[%emt 0:02:30]} 32. f3 {[%emt 0:01:20]} Bg6 {[%emt 0:00:36]} 33. Qf2 {[%emt 0:01:00]} Qxf2 {[%emt 0:00:29]} 34. Rxf2 {[%emt 0:00:03]} Nf6 {[%emt 0:00:25]} 35. h4 {[%emt 0:01:27]} Bf5 {[%emt 0:00:23]} 36. Bxf5 {[%emt 0:00:58]} Nxf5 {[%emt 0:00:03]} 37. Rd2 {[%emt 0:01:27]} Nxh4 {[%emt 0:00:45]} 38. Na4 {[%emt 0:00:10]} Nf5 {[%emt 0:00:37]} 39. Nc5 {[%emt 0:00:29]} Re8 {[%emt 0:00:46]} 40. Rxe8+ {[%emt 0:00:26]} Nxe8 {[%emt 0:00:03]} 41. Ng4 {[%emt 0:00:06]} Re7 {[%emt 0:00:34]} 42. Ne5 {[%emt 0:00:11]} Kh7 {[%emt 0:00:26]} 43. g4 {[%emt 0:00:10]} Nfd6 {[%emt 0:00:37]} 44. Kg2 {[%emt 0:00:21]} Nb5 {[%emt 0:00:50]} 45. f4 {[%emt 0:00:30]} Ned6 {[%emt 0:00:18]} 46. Kf3 {[%emt 0:00:29]} Nc4 {[%emt 0:00:48]} 47. Rd3 {[%emt 0:00:54]} g5 {[%emt 0:00:22]} 48. Rd1 {[%emt 0:01:13]} gxf4 {[%emt 0:00:39]} 49. Kxf4 {[%emt 0:00:09]} Nxd4 {[%emt 0:00:31]} 50. Nxc4 {[%emt 0:01:00]} Ne2+ {[%emt 0:00:02]} 51. Kf5 {[%emt 0:01:01]} dxc4 {[%emt 0:00:04]} 52. Rd2 {[%emt 0:00:29]} c3 {[%emt 0:00:09]} 53. Rd1 {[%emt 0:01:15]} Kg7 {[%emt 0:02:24]} 54. Rd2 0-1

[Event "Centenario Panaderia Pulido 2023"]
[Site "San Mateo Gran Canaria"]
[Date "2023.12.05"]
[Round "2.9"]
[White "Estremera Panos, Sergio"]
[Black "Sanchez Gonzalez, Diego"]
[Result "1-0"]
[ECO "A13"]
[WhiteElo "2232"]
[BlackElo "1858"]
[Annotator "RC"]
[PlyCount "83"]
[EventDate "2023.12.04"]
[EventType "swiss"]
[EventCountry "ESP"]
[SourceTitle "playchess.com"]
[Source "ChessBase"]
[SourceQuality "1"]
[TimeControl "5400+30"]

1. Nf3 {[%emt 0:00:21]} d5 {[%emt 0:00:49]} 2. e3 {[%emt 0:00:19]} c5 {[%emt 0:01:16]} 3. b3 {[%emt 0:00:40]} Nf6 {[%emt 0:09:42]} 4. Bb2 {[%emt 0:00:26]} e6 {[%emt 0:01:49]} 5. c4 {[%emt 0:02:13]} Bd6 {[%emt 0:02:10]} 6. cxd5 {[%emt 0:02:53]} exd5 {[%emt 0:01:01]} 7. Nc3 {[%emt 0:00:49]} a6 {[%emt 0:01:34]} 8. d4 {[%emt 0:02:00]} Nc6 {[%emt 0:05:32]} 9. Be2 {[%emt 0:01:16]} O-O {[%emt 0:04:07]} 10. O-O {[%emt 0:01:53]} Bf5 {[%emt 0:10:02]} 11. Rc1 {[%emt 0:01:56]} cxd4 {[%emt 0:11:51]} 12. Nxd4 {[%emt 0:00:09]} Nxd4 {[%emt 0:02:31]} 13. Qxd4 {[%emt 0:00:10]} Re8 {[%emt 0:02:30]} 14. f4 {[%emt 0:03:07]} Bb8 {[%emt 0:02:46]} 15. Nd1 {[%emt 0:08:50]} Ba7 {[%emt 0:02:22]} 16. Qb4 {[%emt 0:00:17]} Rxe3 {[%emt 0:03:39]} 17. Nxe3 {[%emt 0:00:36]} Bxe3+ {[%emt 0:00:08]} 18. Kh1 {[%emt 0:00:06]} Bxc1 {[%emt 0:00:28]} 19. Rxc1 {[%emt 0:00:21]} b5 {[%emt 0:01:37]} 20. Bf3 {[%emt 0:14:34]} Rc8 {[%emt 0:04:44]} 21. Rd1 {[%emt 0:04:13]} Be6 {[%emt 0:05:49]} 22. h3 {[%emt 0:01:56]} Qb6 {[%emt 0:02:37]} 23. Bd4 {[%emt 0:11:20]} Qc6 {[%emt 0:00:18]} 24. Bxf6 {[%emt 0:12:31]} gxf6 {[%emt 0:02:47]} 25. f5 {[%emt 0:00:34]} Bxf5 {[%emt 0:00:48]} 26. Rxd5 {[%emt 0:00:14]} Qc1+ {[%emt 0:02:59]} 27. Rd1 {[%emt 0:03:14]} Qe3 {[%emt 0:00:41]} 28. Qd6 {[%emt 0:01:20]} Kg7 {[%emt 0:00:56]} 29. Qd4 {[%emt 0:13:51]} Qxd4 {[%emt 0:02:01]} 30. Rxd4 {[%emt 0:00:01]} Rc1+ {[%emt 0:00:09]} 31. Kh2 {[%emt 0:00:09]} Ra1 {[%emt 0:00:18]} 32. a4 {[%emt 0:01:00]} bxa4 {[%emt 0:00:18]} 33. bxa4 {[%emt 0:00:29]} Bc2 {[%emt 0:00:30]} 34. Bc6 {[%emt 0:00:36]} Ra2 {[%emt 0:01:02]} 35. Rd2 {[%emt 0:03:15]} Bb3 {[%emt 0:02:06]} 36. Rd4 {[%emt 0:02:58]} f5 {[%emt 0:02:53]} 37. Rb4 {[%emt 0:00:38]} Bc2 {[%emt 0:01:05]} 38. Rb6 {[%emt 0:02:46]} Bd3 {[%emt 0:03:04]} 39. Rb4 {[%emt 0:02:17]} Kf6 {[%emt 0:01:45]} 40. Bd5 {[%emt 0:00:38]} Ke5 {[%emt 0:00:59]} 41. Bxa2 {[%emt 0:00:06]} f6 {[%emt 0:01:11]} 42. Bc4 {[%emt 0:04:28]} 1-0

[Event "Centenario Panaderia Pulido 2023"]
[Site "San Mateo Gran Canaria"]
[Date "2023.12.05"]
[Round "2.10"]
[White "Rivero Castellano, Carlos Jesus"]
[Black "Uzcategui Rodriguez, Alejandro"]
[Result "1-0"]
[ECO "A47"]
[WhiteElo "1726"]
[BlackElo "2235"]
[Annotator "RC"]
[PlyCount "81"]
[EventDate "2023.12.04"]
[EventType "swiss"]
[EventCountry "ESP"]
[SourceTitle "playchess.com"]
[Source "ChessBase"]
[SourceQuality "1"]
[TimeControl "5400+30"]

1. d4 {[%emt 0:00:06]} Nf6 {[%emt 0:00:12]} 2. Nf3 {[%emt 0:00:09]} e6 {[%emt 0:00:09]} 3. e3 {[%emt 0:00:31]} b6 {[%emt 0:02:43]} 4. Bd3 {[%emt 0:00:17]} Bb7 {[%emt 0:00:14]} 5. Nbd2 {[%emt 0:00:12]} c5 {[%emt 0:00:08]} 6. c3 {[%emt 0:00:10]} cxd4 {[%emt 0:00:05]} 7. exd4 {[%emt 0:00:13]} d6 {[%emt 0:00:06]} 8. O-O {[%emt 0:01:46]} Be7 {[%emt 0:00:27]} 9. Re1 {[%emt 0:00:57]} Nbd7 {[%emt 0:01:03]} 10. Qe2 {[%emt 0:01:51]} O-O {[%emt 0:05:39]} 11. Nf1 {[%emt 0:02:45]} Re8 {[%emt 0:03:14]} 12. Ng5 {[%emt 0:04:10]} Bf8 {[%emt 0:11:25]} 13. Ng3 {[%emt 0:09:13]} e5 {[%emt 0:04:39]} 14. Qc2 {[%emt 0:07:20]} g6 {[%emt 0:01:21]} 15. Qb3 {[%emt 0:07:30]} d5 {[%emt 0:11:36]} 16. Bd2 {[%emt 0:05:06]} h6 {[%emt 0:09:31]} 17. Nh3 {[%emt 0:01:24]} e4 {[%emt 0:01:01]} 18. Bc2 {[%emt 0:00:57]} Ba6 {[%emt 0:06:27]} 19. Bd1 {[%emt 0:01:25]} Qc7 {[%emt 0:09:04]} 20. f3 {[%emt 0:02:17]} h5 {[%emt 0:14:52]} 21. fxe4 {[%emt 0:02:19]} dxe4 {[%emt 0:01:36]} 22. Bf4 {[%emt 0:02:46]} Qc6 {[%emt 0:00:51]} 23. Be2 {[%emt 0:01:54]} Bxe2 {[%emt 0:00:39]} 24. Rxe2 {[%emt 0:00:42]} Nd5 {[%emt 0:04:33]} 25. Rf1 {[%emt 0:06:02]} f5 {[%emt 0:01:36]} 26. Bg5 {[%emt 0:02:40]} Qe6 {[%emt 0:01:55]} 27. c4 {[%emt 0:00:44]} N5f6 {[%emt 0:01:07]} 28. Nf4 {[%emt 0:00:15]} Qf7 {[%emt 0:00:08]} 29. Bh4 {[%emt 0:09:37]} Rac8 {[%emt 0:00:25]} 30. Nxg6 {[%emt 0:05:31]} Qxg6 {[%emt 0:00:31]} 31. Rxf5 {[%emt 0:00:15]} Bh6 {[%emt 0:03:05]} 32. c5+ {[%emt 0:00:57]} Kg7 {[%emt 0:01:21]} 33. Qb5 {[%emt 0:07:30]} Qg4 {[%emt 0:01:08]} 34. c6 {[%emt 0:00:54]} Qxh4 {[%emt 0:00:29]} 35. Rxf6 {[%emt 0:02:53]} Qxf6 {[%emt 0:01:49]} 36. Nxh5+ {[%emt 0:00:10]} Kg6 {[%emt 0:00:12]} 37. Nxf6 {[%emt 0:00:16]} Nxf6 {[%emt 0:00:00]} 38. g4 {[%emt 0:03:52]} Ng8 {[%emt 0:01:57]} 39. Qf5+ {[%emt 0:00:25]} Kg7 {[%emt 0:00:05]} 40. g5 {[%emt 0:01:43]} Rxc6 {[%emt 0:00:01]} 41. Qd7+ {[%emt 0:00:26]} 1-0

[Event "Centenario Panaderia Pulido 2023"]
[Site "San Mateo Gran Canaria"]
[Date "2023.12.05"]
[Round "2.11"]
[White "Hernandez Leon, Alberto"]
[Black "Quiceno Ramirez, Edwin Alejandro"]
[Result "1-0"]
[ECO "D05"]
[WhiteElo "2209"]
[BlackElo "1777"]
[Annotator "RC"]
[PlyCount "117"]
[EventDate "2023.12.04"]
[EventType "swiss"]
[EventCountry "ESP"]
[SourceTitle "playchess.com"]
[Source "ChessBase"]
[SourceQuality "1"]
[TimeControl "5400+30"]

1. d4 {[%emt 0:00:01]} d5 {[%emt 0:01:22]} 2. c4 {[%emt 0:00:12]} e6 {[%emt 0:00:06]} 3. Nf3 {[%emt 0:00:13]} Nf6 {[%emt 0:00:07]} 4. e3 {[%emt 0:02:26]} Be7 {[%emt 0:02:40]} 5. b3 {[%emt 0:00:16]} O-O {[%emt 0:00:07]} 6. Bd3 {[%emt 0:00:24]} b6 {[%emt 0:00:35]} 7. O-O {[%emt 0:01:45]} Bb7 {[%emt 0:00:52]} 8. Bb2 {[%emt 0:00:27]} Nbd7 {[%emt 0:01:44]} 9. Nbd2 {[%emt 0:02:09]} Ne4 {[%emt 0:03:53]} 10. Qc2 {[%emt 0:10:36]} f5 {[%emt 0:00:13]} 11. Rac1 {[%emt 0:03:23]} Rc8 {[%emt 0:03:42]} 12. Rfd1 {[%emt 0:04:58]} Bd6 {[%emt 0:02:22]} 13. Ne5 {[%emt 0:06:13]} c5 {[%emt 0:11:23]} 14. Ndf3 {[%emt 0:03:38]} Ndf6 {[%emt 0:02:29]} 15. Qe2 {[%emt 0:19:17]} Ng4 {[%emt 0:11:57]} 16. Nxg4 {[%emt 0:02:51]} fxg4 {[%emt 0:00:12]} 17. Bxe4 {[%emt 0:00:10]} dxe4 {[%emt 0:02:45]} 18. Ne5 {[%emt 0:01:36]} Bxe5 {[%emt 0:02:57]} 19. dxe5 {[%emt 0:00:05]} Qg5 {[%emt 0:01:01]} 20. Rd6 {[%emt 0:03:12]} Rce8 {[%emt 0:02:42]} 21. Rcd1 {[%emt 0:09:44]} h5 {[%emt 0:00:26]} 22. Rd7 {[%emt 0:01:28]} Re7 {[%emt 0:00:48]} 23. Rxe7 {[%emt 0:02:58]} Qxe7 {[%emt 0:00:06]} 24. Qd2 {[%emt 0:00:04]} Qf7 {[%emt 0:03:33]} 25. Qe2 {[%emt 0:00:43]} h4 {[%emt 0:04:35]} 26. Rd2 {[%emt 0:01:06]} Qf5 {[%emt 0:00:56]} 27. Qd1 {[%emt 0:05:32]} Bc6 {[%emt 0:01:02]} 28. g3 {[%emt 0:19:03]} hxg3 {[%emt 0:02:57]} 29. hxg3 {[%emt 0:00:00]} Kh7 {[%emt 0:02:25]} 30. Qf1 {[%emt 0:00:00]} Kg6 {[%emt 0:01:55]} 31. Qg2 {[%emt 0:00:00]} b5 {[%emt 0:03:43]} 32. Rd6 {[%emt 0:00:00]} Ba8 {[%emt 0:04:05]} 33. cxb5 {[%emt 0:00:00]} Bd5 {[%emt 0:00:07]} 34. Bc3 {[%emt 0:00:00]} Rb8 {[%emt 0:00:52]} 35. Qh1 {[%emt 0:00:00]} Qf3 {[%emt 0:01:30]} 36. Qxf3 {[%emt 0:00:00]} gxf3 {[%emt 0:00:15]} 37. Rd7 {[%emt 0:00:38]} Rb7 {[%emt 0:02:10]} 38. Rxb7 {[%emt 0:01:04]} Bxb7 {[%emt 0:00:09]} 39. Bb2 {[%emt 0:00:35]} Bd5 {[%emt 0:01:02]} 40. Kh2 {[%emt 0:03:06]} c4 {[%emt 0:24:45]} 41. Bd4 {[%emt 0:00:31]} cxb3 {[%emt 0:00:00]} 42. axb3 {[%emt 0:00:04]} Bxb3 {[%emt 0:00:00]} 43. Bxa7 {[%emt 0:00:03]} Bc4 {[%emt 0:00:00]} 44. b6 {[%emt 0:00:02]} Bd5 {[%emt 0:00:00]} 45. Bb8 {[%emt 0:00:44]} Kf5 {[%emt 0:00:00]} 46. Bd6 {[%emt 0:01:13]} Kg4 {[%emt 0:00:00]} 47. Bc7 {[%emt 0:00:42]} g6 {[%emt 0:00:00]} 48. Bd6 {[%emt 0:00:09]} Bb7 {[%emt 0:00:00]} 49. Kg1 {[%emt 0:00:32]} Kh3 {[%emt 0:00:00]} 50. Kf1 {[%emt 0:00:28]} Kh2 {[%emt 0:00:00]} 51. Be7 {[%emt 0:00:06]} Ba6+ {[%emt 0:00:00]} 52. Ke1 {[%emt 0:00:04]} Kg1 {[%emt 0:00:00]} 53. Bh4 {[%emt 0:00:35]} Kg2 {[%emt 0:00:00]} 54. g4 {[%emt 0:00:25]} Kh3 {[%emt 0:00:00]} 55. Bg3 {[%emt 0:00:23]} Kxg4 {[%emt 0:00:00]} 56. Kd2 {[%emt 0:00:05]} Kf5 {[%emt 0:00:00]} 57. Kc3 {[%emt 0:00:05]} g5 {[%emt 0:00:00]} 58. Kd4 {[%emt 0:00:43]} Kg6 {[%emt 0:00:00]} 59. Kc5 {[%emt 0:00:11]} 1-0

[Event "Centenario Panaderia Pulido 2023"]
[Site "San Mateo Gran Canaria"]
[Date "2023.12.05"]
[Round "2.12"]
[White "Rivero Reyes, Alejandro"]
[Black "Hernandez Leon, Sergio"]
[Result "0-1"]
[ECO "D11"]
[WhiteElo "1689"]
[BlackElo "2167"]
[Annotator "RC"]
[PlyCount "56"]
[EventDate "2023.12.04"]
[EventType "swiss"]
[EventCountry "ESP"]
[SourceTitle "playchess.com"]
[Source "ChessBase"]
[SourceQuality "1"]
[TimeControl "5400+30"]

1. Nf3 {[%emt 0:00:40]} Nf6 {[%emt 0:00:05]} 2. g3 {[%emt 0:00:28]} d5 {[%emt 0:00:14]} 3. Bg2 {[%emt 0:00:54]} Bf5 {[%emt 0:00:24]} 4. d4 {[%emt 0:06:38]} e6 {[%emt 0:00:39]} 5. O-O {[%emt 0:00:45]} h6 {[%emt 0:00:09]} 6. c4 {[%emt 0:00:18]} c6 {[%emt 0:01:30]} 7. Nc3 {[%emt 0:00:51]} Bd6 {[%emt 0:00:39]} 8. Qb3 {[%emt 0:07:39]} Qc8 {[%emt 0:08:46]} 9. Nd2 {[%emt 0:06:57]} O-O {[%emt 0:05:00]} 10. e4 {[%emt 0:02:35]} dxe4 {[%emt 0:01:41]} 11. Ndxe4 {[%emt 0:00:50]} Be7 {[%emt 0:02:42]} 12. Bf4 {[%emt 0:09:11]} Rd8 {[%emt 0:04:30]} 13. Rad1 {[%emt 0:01:52]} Na6 {[%emt 0:03:51]} 14. h3 {[%emt 0:10:48]} g5 {[%emt 0:05:57]} 15. Be3 {[%emt 0:03:47]} Nc7 {[%emt 0:05:16]} 16. Nxf6+ {[%emt 0:11:29]} Bxf6 {[%emt 0:00:43]} 17. g4 {[%emt 0:00:08]} Bg6 {[%emt 0:00:58]} 18. Ne4 {[%emt 0:00:28]} Bg7 {[%emt 0:03:27]} 19. Ng3 {[%emt 0:02:17]} a5 {[%emt 0:05:01]} 20. f4 {[%emt 0:06:32]} gxf4 {[%emt 0:03:29]} 21. Rxf4 {[%emt 0:02:51]} a4 {[%emt 0:00:39]} 22. Qb6 {[%emt 0:01:06]} e5 {[%emt 0:01:52]} 23. Nf5 {[%emt 0:01:23]} Bf8 {[%emt 0:01:53]} 24. c5 {[%emt 0:15:38]} exf4 {[%emt 0:04:43]} 25. Bxf4 {[%emt 0:00:33]} Nb5 {[%emt 0:05:42]} 26. Nd6 {[%emt 0:00:54]} Nxd6 {[%emt 0:00:57]} 27. cxd6 {[%emt 0:00:08]} Bxd6 {[%emt 0:00:23]} 28. Bxh6 {[%emt 0:00:20]} Ra6 {[%emt 0:00:30]} 0-1

[Event "Centenario Panaderia Pulido 2023"]
[Site "San Mateo Gran Canaria"]
[Date "2023.12.05"]
[Round "2.13"]
[White "Doluhanova, Evgeniya"]
[Black "Rivero Tacoronte, Gabriel"]
[Result "1-0"]
[ECO "A06"]
[WhiteElo "2177"]
[BlackElo "1695"]
[Annotator "RC"]
[PlyCount "69"]
[EventDate "2023.12.04"]
[EventType "swiss"]
[EventCountry "ESP"]
[SourceTitle "playchess.com"]
[Source "ChessBase"]
[SourceQuality "1"]
[TimeControl "5400+30"]

1. Nf3 {[%emt 0:02:25]} d5 {[%emt 0:00:02]} 2. b3 {[%emt 0:00:06]} Nf6 {[%emt 0:01:06]} 3. Bb2 {[%emt 0:00:10]} c5 {[%emt 0:00:47]} 4. e3 {[%emt 0:00:05]} Nc6 {[%emt 0:00:40]} 5. Bb5 {[%emt 0:00:06]} a6 {[%emt 0:00:47]} 6. Bxc6+ {[%emt 0:00:16]} bxc6 {[%emt 0:00:05]} 7. Ne5 {[%emt 0:00:12]} Qc7 {[%emt 0:01:52]} 8. d3 {[%emt 0:00:17]} e6 {[%emt 0:12:55]} 9. Nd2 {[%emt 0:00:25]} Bd6 {[%emt 0:01:27]} 10. f4 {[%emt 0:00:14]} a5 {[%emt 0:03:14]} 11. O-O {[%emt 0:02:22]} Ba6 {[%emt 0:00:25]} 12. Ng4 {[%emt 0:01:16]} Be7 {[%emt 0:01:37]} 13. f5 {[%emt 0:04:57]} exf5 {[%emt 0:11:25]} 14. Bxf6 {[%emt 0:04:59]} Bxf6 {[%emt 0:00:33]} 15. Nxf6+ {[%emt 0:00:12]} gxf6 {[%emt 0:00:04]} 16. Rxf5 {[%emt 0:00:09]} Bc8 {[%emt 0:00:54]} 17. Rxf6 {[%emt 0:00:32]} Be6 {[%emt 0:00:03]} 18. Qh5 {[%emt 0:04:03]} O-O-O {[%emt 0:00:59]} 19. Raf1 {[%emt 0:00:04]} Rdg8 {[%emt 0:01:28]} 20. Nf3 {[%emt 0:00:27]} Rg7 {[%emt 0:02:33]} 21. Qe5 {[%emt 0:02:41]} Rhg8 {[%emt 0:04:16]} 22. Qxc7+ {[%emt 0:00:27]} Kxc7 {[%emt 0:00:06]} 23. Rf2 {[%emt 0:00:13]} Kd6 {[%emt 0:06:36]} 24. d4 {[%emt 0:02:03]} Rg6 {[%emt 0:17:10]} 25. Rxg6 {[%emt 0:02:20]} hxg6 {[%emt 0:03:29]} 26. Ng5 {[%emt 0:01:13]} cxd4 {[%emt 0:01:24]} 27. exd4 {[%emt 0:00:08]} f5 {[%emt 0:01:05]} 28. Re2 {[%emt 0:00:47]} Bc8 {[%emt 0:01:24]} 29. Nf7+ {[%emt 0:00:13]} Kd7 {[%emt 0:00:27]} 30. Ne5+ {[%emt 0:00:13]} Kd6 {[%emt 0:00:39]} 31. c4 {[%emt 0:00:53]} f4 {[%emt 0:08:17]} 32. c5+ {[%emt 0:00:55]} Kc7 {[%emt 0:00:59]} 33. Nf7 {[%emt 0:00:25]} Kd7 {[%emt 0:03:05]} 34. h4 {[%emt 0:00:15]} Ba6 {[%emt 0:01:03]} 35. Rf2 {[%emt 0:00:11]} 1-0

[Event "Centenario Panaderia Pulido 2023"]
[Site "San Mateo Gran Canaria"]
[Date "2023.12.05"]
[Round "2.14"]
[White "Arribas Lopez, Sara"]
[Black "Mamani Beltran, Deniman"]
[Result "0-1"]
[ECO "B24"]
[WhiteElo "1637"]
[BlackElo "2151"]
[Annotator "RC"]
[PlyCount "70"]
[EventDate "2023.12.04"]
[EventType "swiss"]
[EventCountry "ESP"]
[SourceTitle "playchess.com"]
[Source "ChessBase"]
[SourceQuality "1"]
[TimeControl "5400+30"]

1. e4 {[%emt 0:00:02]} c5 {[%emt 0:00:07]} 2. g3 {[%emt 0:01:22]} e6 {[%emt 0:00:22]} 3. d3 {[%emt 0:00:51]} d5 {[%emt 0:00:11]} 4. Bg2 {[%emt 0:00:19]} Nc6 {[%emt 0:00:07]} 5. Ne2 {[%emt 0:00:43]} Nf6 {[%emt 0:01:57]} 6. Nbc3 {[%emt 0:00:47]} dxe4 {[%emt 0:06:22]} 7. dxe4 {[%emt 0:03:17]} Qxd1+ {[%emt 0:06:35]} 8. Nxd1 {[%emt 0:00:50]} e5 {[%emt 0:00:08]} 9. Ne3 {[%emt 0:02:57]} Be6 {[%emt 0:03:47]} 10. c3 {[%emt 0:04:05]} O-O-O {[%emt 0:02:24]} 11. f4 {[%emt 0:06:27]} h5 {[%emt 0:05:37]} 12. f5 {[%emt 0:01:46]} Bd7 {[%emt 0:00:06]} 13. Nc4 {[%emt 0:03:58]} b5 {[%emt 0:02:14]} 14. Na3 {[%emt 0:02:23]} Na5 {[%emt 0:01:47]} 15. Bg5 {[%emt 0:01:30]} Bc6 {[%emt 0:00:12]} 16. Rd1 {[%emt 0:11:19]} Rxd1+ {[%emt 0:01:33]} 17. Kxd1 {[%emt 0:00:04]} Nxe4 {[%emt 0:02:45]} 18. Bxe4 {[%emt 0:00:48]} Bxe4 {[%emt 0:00:07]} 19. Rf1 {[%emt 0:00:35]} f6 {[%emt 0:00:36]} 20. Bd2 {[%emt 0:02:29]} a6 {[%emt 0:01:04]} 21. b3 {[%emt 0:02:02]} c4 {[%emt 0:02:56]} 22. b4 {[%emt 0:00:16]} Nc6 {[%emt 0:00:04]} 23. Nc2 {[%emt 0:00:37]} Be7 {[%emt 0:00:40]} 24. Kc1 {[%emt 0:03:08]} a5 {[%emt 0:02:25]} 25. a3 {[%emt 0:00:07]} Bd3 {[%emt 0:00:12]} 26. Rf2 {[%emt 0:00:20]} Bd8 {[%emt 0:01:39]} 27. Be3 {[%emt 0:00:56]} Ne7 {[%emt 0:00:10]} 28. Ne1 {[%emt 0:02:32]} axb4 {[%emt 0:00:57]} 29. axb4 {[%emt 0:00:17]} Bxf5 {[%emt 0:00:39]} 30. Bc5 {[%emt 0:00:44]} Be4 {[%emt 0:01:00]} 31. Ng1 {[%emt 0:01:17]} Nd5 {[%emt 0:00:05]} 32. Kb2 {[%emt 0:00:27]} Nb6 {[%emt 0:00:28]} 33. Bxb6 {[%emt 0:00:51]} Bxb6 {[%emt 0:00:07]} 34. Re2 {[%emt 0:00:04]} Bd3 {[%emt 0:01:15]} 35. Rg2 {[%emt 0:00:07]} Bf1 {[%emt 0:00:05]} 0-1